Period,Quarter,"Recipient Name",City,Province,Country,Title,Language,Genre,Date,"Final Value","Original Value",Type,Purpose,Comments
2017-2018,P4,"2033161 Ontario Limited d.b.a. Films We Like",Toronto,Ontario,Canada,WEIRDOS,English,Drama,2018-01-04,32627.00,44223.00,"Recoupable Advance","Marketing Program","Amended contract signed  27-JAN-17"
2017-2018,P4,"Mongrel Media Inc.",Toronto,Ontario,Canada,"Tempest Storm",English,Documentary,2018-01-05,11474.00,21863.00,"Recoupable Advance","Marketing Program","Amended contract signed  07-JUL-16"
2017-2018,P4,"Ravenwest Productions Inc.",Vancouver,"British Columbia",Canada,Normal,English,Drama,2018-01-16,1085.00,4500.00,"Recoupable Advance","International Marketing Program","Amended contract signed  16-NOV-07"
2017-2018,P4,"Forum Films 2005 Inc.",Montreal,Quebec,Canada,"""""""Le prince des jouisseurs""""""",French,"Historical Drama",2018-01-17,35468.00,30000.00,"Recoupable Advance","Development Program","Amended contract signed  24-OCT-16"
2017-2018,P4,"Bah Humbug Films Inc.",Toronto,Ontario,Canada,"Man Who Invented Christmas (The)",English,"Historical Drama",2018-01-18,25000.00,25000.00,Contribution,"International Marketing Program",
2017-2018,P4,"Winesto Films Inc.",Winnipeg,Manitoba,Canada,Billy,English,Drama,2018-01-31,12000.00,15000.00,"Recoupable Advance","Production Program","Amended contract signed  05-OCT-09"
2017-2018,P4,"The New Romantic Inc.",Vancouver,"British Columbia",Canada,"The New Romantic (formerly The Undergraduate)",English,Comedy,2018-01-31,425000.00,350000.00,Investment,"Production Program","Amended contract signed  23-MAR-17"
2017-2018,P4,"Films Christal, s.e.c.(Les)",Montreal,Quebec,Canada,"Affam�s (Les)",French,Horror,2018-02-01,134417.00,20000.00,"Recoupable Advance","Marketing Program","Amended contract signed  15-DEC-15"
2017-2018,P4,"Axia Films inc.",Montreal,Quebec,Canada,"Louise en hiver",French,Drama,2018-02-02,28404.00,33912.00,"Recoupable Advance","Marketing Program","Amended contract signed  28-FEB-17"
2017-2018,P4,"Axia Films inc.",Montreal,Quebec,Canada,"Pacte des anges (Le)",French,Drama,2018-02-13,198441.00,188743.00,"Recoupable Advance","Marketing Program","Amended contract signed  28-SEP-16"
2017-2018,P4,"Breadwinner Canada Inc.",Toronto,Ontario,Canada,"Breadwinner (The)",English,Drama,2018-02-21,135000.00,135000.00,Contribution,"International Marketing Program",
2017-2018,P4,"A71 Entertainment Inc.",Toronto,Ontario,Canada,"Sadie's Last Day on Earth",English,Comedy,2018-03-06,73360.00,74167.00,"Recoupable Advance","Marketing Program","Amended contract signed  08-DEC-16"
2017-2018,P4,"HR Pictures Inc.",Halifax,"Nova Scotia",Canada,"Hopeless (Romantic)",English,"Romantic Comedy",2018-03-09,500000.00,450000.00,Investment,"Production Program","Amended contract signed  09-MAR-17"
2017-2018,P4,"Productions Pixcom Inc.",Montreal,Quebec,Canada,"projet Sam",French,Drama,2018-03-14,400000.00,200000.00,"Recoupable Advance","Development Program",
2017-2018,P4,"Stickgirl Productions Inc.",Vancouver,"British Columbia",Canada,"Window Horses",English,Drama,2018-03-14,35000.00,25000.00,Contribution,"International Marketing Program","Amended contract signed  30-AUG-17"
2017-2018,P4,"Films S�ville Inc. (Les) / Seville Pictures Inc.",Montreal,Quebec,Canada,"Ballerina ",English,Drama,2018-03-15,1176240.00,1222370.00,"Recoupable Advance","Marketing Program","Amended contract signed  23-MAR-17"
2017-2018,P4,"Small Shack Productions Inc.","St. John's",Newfoundland/Labrador,Canada,Maudie,English,Drama,2018-03-19,10000.00,10000.00,Contribution,"International Marketing Program",
2017-2018,P4,"Level Film Inc.",Toronto,Ontario,Canada,"Colossal Failure of the Modern Relationship (The)",English,"Romantic Comedy",2018-03-20,24384.00,37661.00,"Recoupable Advance","Marketing Program","Amended contract signed  03-OCT-16"
2017-2018,P4,"9335-2631 Qu�bec Inc.",Montreal,Quebec,Canada,D�rive,French,Drama,2018-03-21,435000.00,400000.00,Investment,"Production Program","Amended contract signed  08-MAR-16"
2017-2018,P4,"Productions Caramel Film Inc.",Montreal,Quebec,Canada,"Gut Instinct",English,Mystery/Crime/Police,2018-03-21,126028.00,126028.00,"Recoupable Advance","Production Program","Amended contract signed  08-MAR-16"
2017-2018,P4,"9337-3868 Quebec Inc.",Montreal,Quebec,Canada,"Ville Neuve",French,Drama,2018-03-21,328334.00,300000.00,Investment,"Production Program","Amended contract signed  22-MAR-16"
2017-2018,P4,"Attraction Images Productions X Inc.",Montreal,Quebec,Canada,"14 jours, 12 nuits",French,Drama,2018-03-14,1450000.00,1450000.00,Advance,"Production Program",
2017-2018,P4,"10346764 Canada Inc",Montreal,Quebec,Canada,"Lepage au soleil",French,Documentary,2018-03-09,125000.00,125000.00,Contribution,"Theatrical Documentary Program",
2017-2018,P4,"LCDT inc.",Montreal,Quebec,Canada,"La Course des Tuques / Snowtime! 2",French,Comedy,2018-01-05,1784166.00,1784166.00,Investment,"Production Program",
2017-2018,P4,"9257-8285 Qu�bec Inc",Quebec,Quebec,Canada,"Mad Dog & The Butcher, le film",French,Documentary,2018-03-28,100000.00,100000.00,Contribution,"Theatrical Documentary Program",
2017-2018,P4,"PCF Journey Le Film Inc.",Montreal,Quebec,Canada,"Gut Instinct",English,Mystery/Crime/Police,2018-02-19,2373972.00,2373972.00,Investment,"Production Program",
2017-2018,P4,"Goalie Productions Inc.",Toronto,Ontario,Canada,Goalie,English,Drama,2018-03-16,1797680.00,1797680.00,Investment,"Production Program",
2017-2018,P4,"Forum Films (Georges) Inc.",Montreal,Quebec,Canada,"Pauvre Georges !",French,Drama,2018-02-26,300000.00,300000.00,Investment,"Production Program",
2017-2018,P4,"Rhombus Possessor Inc.",Toronto,Ontario,Canada,Possessor,English,Drama,2018-03-28,3083876.00,3083876.00,Investment,"Production Program",
2017-2018,P4,"Gunpowder & Sky Distribution LLC","New York","New York","United States","Below Her Mouth",English,Drama,2018-01-09,28500.00,28500.00,Contribution,"Export Assistance Program",
2017-2018,P4,"SPF (Songs) Productions Inc.",Toronto,Ontario,Canada,"Song of Names",English,Drama,2018-03-09,7000000.00,7000000.00,Investment,"Production Program",
2017-2018,P4,"Not A Bad Person Productions Inc.",Vancouver,"British Columbia",Canada,"I'm Not A Bad Person",English,Drama,2018-02-01,500000.00,450000.00,Investment,"Production Program","Amended Contract Signed 29-Aug-2017"
2017-2018,P4,"Go Films L.P.R.S. Inc.",Montreal,Quebec,Canada,"Sympathie pour le Diable",French,Drama,2018-03-13,200000.00,200000.00,Investment,"Production Program",
2017-2018,P4,"CarpeDiem Film & TV Inc.",Montreal,Quebec,Canada,"La Course des Tuques / Snowtime! 2",French,Comedy,2018-01-23,0.00,215834.00,Advance,"Production Program","Amended Contract Signed 27-Mar-2017"
2017-2018,P4,"CarpeDiem Film & TV Inc.",Montreal,Quebec,Canada,"La Course des Tuques / Snowtime! 2",French,Comedy,2018-01-23,215834.00,0.00,Investment,"Production Program","Amended Contract Signed 27-Mar-2017"
2017-2018,P4,"Carkner Films Inc.",Vancouver,"British Columbia",Canada,Kingsway,English,"Romantic Comedy",2018-03-21,75000.00,75000.00,Investment,"Production Program",
2017-2018,P4,"Blood Quantum inc",Montreal,Quebec,Canada,"Blood Quantum",English,Horror,2018-02-05,1700000.00,1700000.00,Investment,"Production Program",
2017-2018,P4,"RTR 2016 Ontario Inc.",Toronto,Ontario,Canada,"Secrets from the Russian Tea Room",English,Drama,2018-02-07,700000.00,700000.00,Investment,"Production Program",
2017-2018,P4,"Bella Ciao Digital Incorporated",Vancouver,"British Columbia",Canada,"Bella Ciao!",English,Drama,2018-02-16,68600.00,68600.00,Contribution,"Production Program",
2017-2018,P4,"9364-4680 Qu�bec Inc.",Montreal,Quebec,Canada,Gold,French,Drama,2018-03-21,430000.00,400000.00,Contribution,"Production Program","Amended Contract Signed 03-Oct-2017"
2017-2018,P4,"Noel en boite Inc.",Ottawa,Ontario,Canada,"No�l en bo�te",French,Comedy,2018-03-20,500000.00,500000.00,Investment,"Production Program",
2017-2018,P4,"Kingulliit Productions Inc.",Igloolik,Nunavut,Canada,"One Day in the Life of  Noah Piugattuk",English,"Historical Drama",2018-03-13,293500.00,293500.00,Contribution,"Production Program",
2017-2018,P4,"13 Miles Productions Ltd.",Burnaby,"British Columbia",Canada,"13 Miles",English,Drama,2018-03-19,50000.00,50000.00,Contribution,"Production Program",
2017-2018,P4,"Motion 58 Entertainment Inc.",Vancouver,"British Columbia",Canada,Monoceros,English,"Science fiction/Fantasy/Tale",2018-03-27,500000.00,500000.00,Investment,"Production Program",
2017-2018,P4,"The Rest of Us Inc.",Toronto,Ontario,Canada,"The Rest Of Us",English,Drama,2018-03-23,425000.00,425000.00,Investment,"Production Program",
2017-2018,P4,"Les Productions du Moment Inc.",Saint-Basile-le-Grand,Quebec,Canada,"Le sucre naturel de la peau",French,Drama,2018-01-11,150000.00,150000.00,Contribution,"Production Program",
2017-2018,P4,"Black Conflux Productions NL Inc.",St-John's,Newfoundland/Labrador,Canada,"Black Conflux",English,Drama,2018-03-28,400000.00,400000.00,Contribution,"Production Program",
2017-2018,P4,"Sea Green Pictures Inc.",Halifax,"Nova Scotia",Canada,Spinster,English,Drama,2018-02-28,500000.00,500000.00,Contribution,"Production Program",
2017-2018,P4,"10614726 Canada Inc.",Gatineau,Quebec,Canada,"Rustic Oracle",English,Drama,2018-03-22,500000.00,500000.00,Contribution,"Production Program",
2017-2018,P4,"KMLT Productions Inc.",Vancouver,"British Columbia",Canada,"""The Body Remembers When The World Broke Open (aka """"Stay"""")""",English,Drama,2018-03-16,500000.00,500000.00,Investment,"Production Program",
2017-2018,P4,"Voyelles Films Productions inc.",Montreal,Quebec,Canada,"Sin La Habana",English,Drama,2018-03-23,450000.00,450000.00,Contribution,"Production Program",
2017-2018,P4,"Sara Fost Pictures Inc.",St-John's,Newfoundland/Labrador,Canada,Hammer,English,Thriller,2018-03-28,500000.00,500000.00,Investment,"Production Program",
2017-2018,P4,"Rebirth Films Incorporated",Dartmouth,"Nova Scotia",Canada,"REBIRTH 8:37",English,Thriller,2018-02-27,418562.00,418562.00,Contribution,"Production Program",
2017-2018,P4,"Fluent Films (PULSE) Inc.",Montreal,Quebec,Canada,"The Day Between",English,Drama,2018-03-16,450000.00,450000.00,Contribution,"Production Program",
2017-2018,P4,"Falls Around Her Films Inc.",Toronto,Ontario,Canada,"Falls Around Her",English,Thriller,2018-03-12,400000.00,400000.00,Investment,"Production Program",
2017-2018,P4,"9118-9522 Qu�bec Inc.",Hampstead,Quebec,Canada,"""SEDNA, """"EMPRESS OF THE SEA""""""",English,Drama,2018-02-13,500000.00,500000.00,Investment,"Production Program",
2017-2018,P4,"Zhoh Daatsik Pictures Inc.","Galiano Island","British Columbia",Canada,"Red Snow",English,Drama,2018-02-14,500000.00,500000.00,Investment,"Production Program",
2017-2018,P4,"The Cuban Movie Inc.",Toronto,Ontario,Canada,"The Cuban",English,Drama,2018-03-26,437821.00,437821.00,Investment,"Production Program",
2017-2018,P4,"2574393 Ontario Inc.",Brantford,Ontario,Canada,"The Incredible 25th Year of Mitzi Bearclaw",English,Comedy,2018-03-21,500000.00,500000.00,Investment,"Production Program",
2017-2018,P4,"1459479 Alberta Inc. dba Raging River Productions",Calgary,Alberta,Canada,"April In Autumn",English,Drama,2018-01-12,76500.00,60000.00,Investment,"Production Program","Amended Contract Signed 09-Aug-2017"
2017-2018,P4,"Red Eye Productions Inc.",Calgary,Alberta,Canada,"Red Eye",English,"Science fiction/Fantasy/Tale",2018-03-27,500000.00,500000.00,Contribution,"Production Program",
2017-2018,P4,"Malefic Films Inc.",Halifax,"Nova Scotia",Canada,"Child Remains (The)",English,Horror,2018-03-22,700.00,700.00,Contribution,"International Marketing Program",
2017-2018,P4,"Films Christal, s.e.c.(Les)",Montreal,Quebec,Canada,"Junior Majeur",French,Drama,2018-03-23,576257.00,576257.00,Advance,"Marketing Program",
2017-2018,P4,"696276 NB Inc.",Fredericton,"New Brunswick",Canada,Entropic,English,Drama,2018-02-16,127500.00,127500.00,Contribution,"Micro-Budget Production Program",
2017-2018,P4,"Fall Back Down Productions Inc.",Vancouver,"British Columbia",Canada,"FALL BACK DOWN",English,"Romantic Comedy",2018-02-16,127252.00,127252.00,Contribution,"Micro-Budget Production Program",
2017-2018,P4,"Films S�ville Inc. (Les)",Montreal,Quebec,Canada,"Un sac de billes",French,Drama,2018-03-23,88416.00,88416.00,Advance,"Marketing Program",
2017-2018,P4,"Pass Through Productions Inc.","North Vancouver","British Columbia",Canada,"Pass Through",English,Drama,2018-02-16,127500.00,127500.00,Contribution,"Micro-Budget Production Program",
2017-2018,P4,"Scattered and Small Pictures Inc.","St. John's",Newfoundland/Labrador,Canada,"Scattered and Small",English,Drama,2018-03-13,127500.00,127500.00,Contribution,"Micro-Budget Production Program",
2017-2018,P4,"2583035 ONTARIO INC.",Toronto,Ontario,Canada,P6HUT,English,Drama,2018-01-02,127500.00,127500.00,Contribution,"Micro-Budget Production Program",
2017-2018,P4,"Strand Releasing","Culver City",California,"United States","Skyjacker's Tale (The)",English,Documentary,2018-03-20,15500.00,15500.00,Contribution,"Export Assistance Program",
2017-2018,P4,"9202-3175 QU�BEC INC.",Montreal,Quebec,Canada,"Coproduction market - no specific project",English,,2018-01-19,1000.00,1000.00,Contribution,"International Marketing Program",
2017-2018,P4,"Indian Horse Productions (BC) Inc.",Vancouver,"British Columbia",Canada,"Indian Horse",English,Drama,2018-03-28,100000.00,50000.00,Advance,"Marketing Program","Amended Contract Signed 03-Oct-2017"
2017-2018,P4,"Hungry Eyes Media Inc.",Toronto,Ontario,Canada,"Rip Tide",English,Drama,2018-02-08,15000.00,0.00,Advance,"Development Program","Amended Contract Signed 07-Sep-2017"
2017-2018,P4,"Search Engine Films Inc.",Toronto,Ontario,Canada,"Don't Talk To Irene",English,Comedy,2018-01-16,54463.00,61946.00,Advance,"Marketing Program","Amended Contract Signed 01-Sep-2017"
2017-2018,P4,"DCP Lucky Day Inc.",Toronto,Ontario,Canada,"Lucky Day",English,Drama,2018-03-23,3007815.00,3007815.00,Investment,"Production Program",
2017-2018,P4,"First Generation Films Inc.",Toronto,Ontario,Canada,Seiner,English,Action/Adventure,2018-01-17,35000.00,35000.00,Advance,"Development Program",
2017-2018,P4,"GESTION CTVM + WEB INC",Outremont,Quebec,Canada,"Promotion et visibilit� de T�l�film sur CTVM.info",,,2018-03-22,38000.00,23000.00,Contribution,"Promotion Program","Amended Contract Signed 26-Oct-2017"
2017-2018,P4,"Level Film Inc.",Toronto,Ontario,Canada,"Suck it Up",English,Comedy,2018-01-31,30030.00,30030.00,Advance,"Marketing Program",
2017-2018,P4,"Shaftesbury Carmilla Movie Inc.",Toronto,Ontario,Canada,"Carmilla: The Movie",English,"Science fiction/Fantasy/Tale",2018-03-01,50000.00,50000.00,Advance,"Marketing Program",
2017-2018,P4,"9272-3618 Qu�bec inc.",Montreal,Quebec,Canada,"La femme de mon fr�re",French,Comedy,2018-01-16,1000000.00,1000000.00,Investment,"Production Program",
2017-2018,P4,"Raven Banner Releasing Inc.",Toronto,Ontario,Canada,"Dead Shack",English,Horror,2018-02-05,45787.00,45787.00,Advance,"Marketing Program",
2017-2018,P4,"Funfilm Distribution Inc.",Montreal,Quebec,Canada,"Les d�poss�d�s",French,Documentary,2018-01-09,20000.00,20000.00,Advance,"Marketing Program",
2017-2018,P4,"Mouthpiece (FGM) Films Inc.",Toronto,Ontario,Canada,Mouthpiece,English,Drama,2018-01-18,750000.00,750000.00,Investment,"Production Program",
2017-2018,P4,"Woods Entertainment Canada Inc.",Toronto,Ontario,Canada,"With Grace & Might",English,Drama,2018-01-03,15000.00,15000.00,Advance,"Development Program",
2017-2018,P4,"Woods Entertainment Canada Inc.",Toronto,Ontario,Canada,"Civil Disobedience",English,Thriller,2018-01-03,15000.00,15000.00,Advance,"Development Program",
2017-2018,P4,"Grassfire Films Inc.","New Waterford","Nova Scotia",Canada,Ophelia,English,Drama,2018-02-02,15000.00,15000.00,Advance,"Development Program",
2017-2018,P4,"Grassfire Films Inc.","New Waterford","Nova Scotia",Canada,"Two Cuckolds Go Swimming",English,Drama,2018-02-02,15000.00,15000.00,Advance,"Development Program",
2017-2018,P4,"A-Z Films Inc.",Montreal,Quebec,Canada,"We're Still Together",English,Drama,2018-03-23,38053.00,38053.00,Advance,"Marketing Program",
2017-2018,P4,"Brunico Communications Ltd.",Toronto,Ontario,Canada,"Entertainment Marketing Forum",,,2018-03-19,40000.00,40000.00,Contribution,"Promotion Program",
2017-2018,P4,"Les Productions du Cerf-Volant Inc.",Sherbrooke,Quebec,Canada,"Lost In The Cold / Marruuk qupanuak asiumajuuk ijj",English,Documentary,2018-02-08,15000.00,0.00,Advance,"Development Program","Amended Contract Signed 18-Oct-2017"
2017-2018,P4,"9185-6120 Qu�bec Inc.",Montreal,Quebec,Canada,C,French,Western,2018-01-31,300000.00,300000.00,Contribution,"Production Program",
2017-2018,P4,"Fella Films Inc.",Ottawa,Ontario,Canada,"Assisted Living",English,Comedy,2018-01-02,40000.00,40000.00,Advance,"Development Program",
2017-2018,P4,"Fella Films Inc.",Ottawa,Ontario,Canada,"All The Ugly and Wonderful Things",English,Drama,2018-01-02,15000.00,15000.00,Advance,"Development Program",
2017-2018,P4,"The Film Farm Inc.",Toronto,Ontario,Canada,"Lord Only Knows I'm Gone",English,Drama,2018-02-15,15000.00,15000.00,Advance,"Development Program",
2017-2018,P4,"The Film Farm Inc.",Toronto,Ontario,Canada,"The Last Weekend",English,Drama,2018-02-15,15000.00,15000.00,Advance,"Development Program",
2017-2018,P4,"The Film Farm Inc.",Toronto,Ontario,Canada,"The Vegas",English,Drama,2018-02-15,15000.00,15000.00,Advance,"Development Program",
2017-2018,P4,"Groupe Fair-Play Inc.",Montreal,Quebec,Canada,"Ya Basta!",French,Documentary,2018-01-22,15000.00,15000.00,Advance,"Development Program",
2017-2018,P4,"Groupe Fair-Play Inc.",Montreal,Quebec,Canada,"Essai Erreur",French,"Romantic Comedy",2018-01-22,15000.00,15000.00,Advance,"Development Program",
2017-2018,P4,"Films S�ville Inc. (Les)",Montreal,Quebec,Canada,"Pieds nus dans l'aube",French,Drama,2018-03-23,356831.00,356831.00,Advance,"Marketing Program",
2017-2018,P4,"Caravane Films Productions",Chicoutimi,Quebec,Canada,"Festival REGARD / March� du court",,,2018-03-13,62159.00,62159.00,Contribution,"Promotion Program",
2017-2018,P4,"Sienna Films Inc.",Toronto,Ontario,Canada,"Take Me To Church",English,Comedy,2018-01-18,15000.00,15000.00,Advance,"Development Program",
2017-2018,P4,"Sienna Films Inc.",Toronto,Ontario,Canada,Forgotten,English,Drama,2018-01-18,15000.00,15000.00,Advance,"Development Program",
2017-2018,P4,"Films Vision 4 Inc.",Montreal,Quebec,Canada,Em�,French,Comedy,2018-01-11,15000.00,15000.00,Advance,"Development Program",
2017-2018,P4,"Films Vision 4 Inc.",Montreal,Quebec,Canada,"Plague Angel",English,Drama,2018-01-11,15000.00,15000.00,Advance,"Development Program",
2017-2018,P4,"Films Vision 4 Inc.",Montreal,Quebec,Canada,"On va se faire des enfants",French,Drama,2018-01-11,25000.00,25000.00,Advance,"Development Program",
2017-2018,P4,"Bunk 11 Pictures Inc.",Ottawa,Ontario,Canada,Blackwood,English,Horror,2018-01-10,15000.00,15000.00,Advance,"Development Program",
2017-2018,P4,"Bunk 11 Pictures Inc.",Ottawa,Ontario,Canada,Collider,English,"Science fiction/Fantasy/Tale",2018-01-10,15000.00,15000.00,Advance,"Development Program",
2017-2018,P4,"Lost Time Media Inc.",Toronto,Ontario,Canada,"No Visible Trauma",English,Documentary,2018-01-03,1500.00,1500.00,Contribution,"International Marketing Program",
2017-2018,P4,"January Films Ltd.",Toronto,Ontario,Canada,"Untitled Tasha Hubbard Project",English,Drama,2018-01-12,15000.00,15000.00,Advance,"Development Program",
2017-2018,P4,"January Films Ltd.",Toronto,Ontario,Canada,"Untitled Will Schneider Project",English,"Science fiction/Fantasy/Tale",2018-01-12,15000.00,15000.00,Advance,"Development Program",
2017-2018,P4,"Serendipity Point Films Inc.",Toronto,Ontario,Canada,"7 Weeks (aka LIMINAL)",English,Drama,2018-03-22,73000.00,73000.00,Advance,"Development Program",
2017-2018,P4,"Serendipity Point Films Inc.",Toronto,Ontario,Canada,Shot-Blue,English,Drama,2018-03-22,83320.00,83320.00,Advance,"Development Program",
2017-2018,P4,"Serendipity Point Films Inc.",Toronto,Ontario,Canada,"The Bike Ride",English,Drama,2018-03-22,43680.00,43680.00,Advance,"Development Program",
2017-2018,P4,"Hawkeye Pictures Inc.",Toronto,Ontario,Canada,"The Sleepover",English,Action/Adventure,2018-01-15,15000.00,15000.00,Advance,"Development Program",
2017-2018,P4,"Hawkeye Pictures Inc.",Toronto,Ontario,Canada,Plunder,English,Comedy,2018-01-15,15000.00,15000.00,Advance,"Development Program",
2017-2018,P4,"Rhombus Media Inc.",Toronto,Ontario,Canada,"Clifton Hill",English,Drama,2018-01-26,66640.00,66640.00,Advance,"Development Program",
2017-2018,P4,"Rhombus Media Inc.",Toronto,Ontario,Canada,"Losing The Signal",English,Drama,2018-01-26,109620.00,109620.00,Advance,"Development Program",
2017-2018,P4,"Rhombus Media Inc.",Toronto,Ontario,Canada,"The Furies",English,Drama,2018-01-26,23520.00,23520.00,Advance,"Development Program",
2017-2018,P4,"Mad Samurai Productions Inc.",Richmond,"British Columbia",Canada,"Beyond The Limit",English,Action/Adventure,2018-01-04,15000.00,15000.00,Advance,"Development Program",
2017-2018,P4,"Mad Samurai Productions Inc.",Richmond,"British Columbia",Canada,Smashed,English,Thriller,2018-01-04,20000.00,20000.00,Advance,"Development Program",
2017-2018,P4,"Inferno Pictures Inc.",Winnipeg,Manitoba,Canada,"Checkered Flag",English,Comedy,2018-03-26,20000.00,20000.00,Advance,"Development Program",
2017-2018,P4,"Inferno Pictures Inc.",Winnipeg,Manitoba,Canada,"All The Better",English,Drama,2018-03-26,15000.00,15000.00,Advance,"Development Program",
2017-2018,P4,"Inferno Pictures Inc.",Winnipeg,Manitoba,Canada,"Untitled Roger Avary Refugee Project",English,Drama,2018-03-26,20000.00,20000.00,Advance,"Development Program",
2017-2018,P4,"Inferno Pictures Inc.",Winnipeg,Manitoba,Canada,"The Fruit Machine",English,"Historical Drama",2018-03-26,15000.00,15000.00,Advance,"Development Program",
2017-2018,P4,"Crawlspace Films, Inc.","St. John's",Newfoundland/Labrador,Canada,"Sweet Angel Baby",English,Drama,2018-01-04,15000.00,15000.00,Advance,"Development Program",
2017-2018,P4,"Crawlspace Films, Inc.","St. John's",Newfoundland/Labrador,Canada,"The Broken Hearts of the Dead",English,Horror,2018-01-04,15000.00,15000.00,Advance,"Development Program",
2017-2018,P4,"Crawlspace Films, Inc.","St. John's",Newfoundland/Labrador,Canada,Firestarter,English,Thriller,2018-01-04,15000.00,15000.00,Advance,"Development Program",
2017-2018,P4,"Connections Productions Inc.",Bedford,"Nova Scotia",Canada,"Seth Rogan Hates X-Mas!",English,Comedy,2018-01-31,15000.00,15000.00,Advance,"Development Program",
2017-2018,P4,"Lithium Studios Productions Inc.",Toronto,Ontario,Canada,"I Will Not Go Quietly",English,Drama,2018-03-09,15000.00,15000.00,Advance,"Development Program",
2017-2018,P4,"Buffalo Gal Pictures Inc.",Winnipeg,Manitoba,Canada,"The Cottage",English,Drama,2018-03-21,15000.00,15000.00,Advance,"Development Program",
2017-2018,P4,"Buffalo Gal Pictures Inc.",Winnipeg,Manitoba,Canada,Coppermine,English,"Historical Drama",2018-03-21,25000.00,25000.00,Advance,"Development Program",
2017-2018,P4,"Buffalo Gal Pictures Inc.",Winnipeg,Manitoba,Canada,"Evening Chorus",English,"Historical Drama",2018-03-21,40000.00,40000.00,Advance,"Development Program",
2017-2018,P4,"Buffalo Gal Pictures Inc.",Winnipeg,Manitoba,Canada,"Hunter Hunter",English,Thriller,2018-03-21,15000.00,15000.00,Advance,"Development Program",
2017-2018,P4,"High Definition Pictures Inc.",Winnipeg,Manitoba,Canada,"Old Magic",English,Drama,2018-01-09,15000.00,15000.00,Advance,"Development Program",
2017-2018,P4,"High Definition Pictures Inc.",Winnipeg,Manitoba,Canada,Uprising,English,Mystery/Crime/Police,2018-01-09,15000.00,15000.00,Advance,"Development Program",
2017-2018,P4,"Item 7 Inc.",Montreal,Quebec,Canada,"The Traveler",English,Comedy,2018-03-20,21000.00,21000.00,Advance,"Development Program",
2017-2018,P4,"Item 7 Inc.",Montreal,Quebec,Canada,"Le chef et la douani�re",French,Comedy,2018-03-20,15000.00,15000.00,Advance,"Development Program",
2017-2018,P4,"Item 7 Inc.",Montreal,Quebec,Canada,"A Dark and Broken Heart",English,Drama,2018-03-20,42000.00,42000.00,Advance,"Development Program",
2017-2018,P4,"Item 7 Inc.",Montreal,Quebec,Canada,"Inherited Night",English,Drama,2018-03-20,15000.00,15000.00,Advance,"Development Program",
2017-2018,P4,"Item 7 Inc.",Montreal,Quebec,Canada,�chou�,French,Drama,2018-03-20,15000.00,15000.00,Advance,"Development Program",
2017-2018,P4,"Item 7 Inc.",Montreal,Quebec,Canada,"Les jours heureux",French,Drama,2018-03-20,28000.00,28000.00,Advance,"Development Program",
2017-2018,P4,"Item 7 Inc.",Montreal,Quebec,Canada,"The War of the Worlds",English,"Science fiction/Fantasy/Tale",2018-03-20,44000.00,44000.00,Advance,"Development Program",
2017-2018,P4,"Screen Siren Pictures Inc.",Vancouver,"British Columbia",Canada,"The Widows' Club",English,Comedy,2018-03-27,39872.00,39872.00,Advance,"Development Program",
2017-2018,P4,"Screen Siren Pictures Inc.",Vancouver,"British Columbia",Canada,"Out of the Barren",English,Drama,2018-03-27,17920.00,17920.00,Advance,"Development Program",
2017-2018,P4,"Screen Siren Pictures Inc.",Vancouver,"British Columbia",Canada,"The Keeper",English,"Historical Drama",2018-03-27,31484.00,31484.00,Advance,"Development Program",
2017-2018,P4,"Holdfast Pictures Inc.",Halifax,"Nova Scotia",Canada,"Birds In Fall",English,Drama,2018-01-09,15000.00,15000.00,Advance,"Development Program",
2017-2018,P4,"Holdfast Pictures Inc.",Halifax,"Nova Scotia",Canada,"Lunenburg County Line",English,Drama,2018-01-09,15000.00,15000.00,Advance,"Development Program",
2017-2018,P4,"Holdfast Pictures Inc.",Halifax,"Nova Scotia",Canada,"Company Town",English,"Historical Drama",2018-01-09,20000.00,20000.00,Advance,"Development Program",
2017-2018,P4,"White Pine Pictures Inc.",Toronto,Ontario,Canada,"Untitled Margaret Atwood Project",English,Documentary,2018-02-05,15000.00,15000.00,Advance,"Development Program",
2017-2018,P4,"White Pine Pictures Inc.",Toronto,Ontario,Canada,"The Passage",English,Drama,2018-02-05,15000.00,15000.00,Advance,"Development Program",
2017-2018,P4,"White Pine Pictures Inc.",Toronto,Ontario,Canada,"The Projectionist",English,"Historical Drama",2018-02-05,15000.00,15000.00,Advance,"Development Program",
2017-2018,P4,"Darius Films Inc.",Toronto,Ontario,Canada,"Evil Fire",English,Drama,2018-01-30,15000.00,15000.00,Advance,"Development Program",
2017-2018,P4,"Darius Films Inc.",Toronto,Ontario,Canada,Zephyr,English,Drama,2018-01-30,15000.00,15000.00,Advance,"Development Program",
2017-2018,P4,"Darius Films Inc.",Toronto,Ontario,Canada,"All My Heroes Are Dead",English,Horror,2018-01-30,20000.00,20000.00,Advance,"Development Program",
2017-2018,P4,"Darius Films Inc.",Toronto,Ontario,Canada,"Sleeping Dog Lie",English,Western,2018-01-30,20000.00,20000.00,Advance,"Development Program",
2017-2018,P4,"Scythia Films Inc.",Toronto,Ontario,Canada,Slash/Back,English,Action/Adventure,2018-01-10,15000.00,15000.00,Advance,"Development Program",
2017-2018,P4,"Scythia Films Inc.",Toronto,Ontario,Canada,Alterra,English,"Science fiction/Fantasy/Tale",2018-01-10,15000.00,15000.00,Advance,"Development Program",
2017-2018,P4,"Manis Film Consultants Inc.",Toronto,Ontario,Canada,"Arizona Bark",English,Comedy,2018-01-11,15000.00,15000.00,Advance,"Development Program",
2017-2018,P4,"Possibles M�dia inc.",Montreal,Quebec,Canada,"Bleuets Sauvages",French,Action/Adventure,2018-02-09,15000.00,15000.00,Advance,"Development Program",
2017-2018,P4,"Possibles M�dia inc.",Montreal,Quebec,Canada,"La Ballade d'entre deux Mondes",French,"Historical Drama",2018-02-09,15000.00,15000.00,Advance,"Development Program",
2017-2018,P4,"Honalee Productions Inc.",Vancouver,"British Columbia",Canada,"Jack of Diamonds",English,"Historical Drama",2018-01-23,20000.00,20000.00,Advance,"Development Program",
2017-2018,P4,"Alyson Richards Productions Inc.",Hamilton,Ontario,Canada,"The Retreat",English,Horror,2018-02-02,15000.00,15000.00,Advance,"Development Program",
2017-2018,P4,"Axia Films inc.",Montreal,Quebec,Canada,"Y'EST OU LE PARADIS",French,Drama,2018-02-02,40000.00,40000.00,Advance,"Marketing Program",
2017-2018,P4,"Productions Couzin Inc",Montreal,Quebec,Canada,"R�pertoire des villes disparues",French,"Science fiction/Fantasy/Tale",2018-03-09,850000.00,850000.00,Investment,"Production Program",
2017-2018,P4,"Films S�ville Inc. (Les)",Montreal,Quebec,Canada,"Double Peine",French,Documentary,2018-03-23,45305.00,45305.00,Advance,"Marketing Program",
2017-2018,P4,"Maison 4:3 Inc.",Montreal,Quebec,Canada,"Les faux tatouages",French,Drama,2018-03-05,37344.00,37344.00,Advance,"Marketing Program",
2017-2018,P4,"Festival du film de l'Outaouais",Montreal,Quebec,Canada,"Festival du film de l'Outaouais",,,2018-01-04,26069.00,26069.00,Contribution,"Promotion Program",
2017-2018,P4,"Canadian Film Centre",Toronto,Ontario,Canada,"Telefilm Canada Feature Comedy Exchange",,,2018-02-09,175000.00,175000.00,Contribution,"Promotion Program",
2017-2018,P4,"Women In View",Toronto,Ontario,Canada," Five in Focus 2017-18 and Roll Call (website)",,,2018-01-04,20000.00,20000.00,Contribution,"Promotion Program",
2017-2018,P4,"Films Christal, s.e.c.(Les)",Montreal,Quebec,Canada,"Nous sommes les autres",French,Drama,2018-03-23,73952.00,73952.00,Advance,"Marketing Program",
2017-2018,P4,"Unknown Pictures Ltd.",Edmonton,Alberta,Canada,"Romantic Road",English,Documentary,2018-03-23,1500.00,1500.00,Contribution,"International Marketing Program",
2017-2018,P4,"The Documentary Media Society",Vancouver,"British Columbia",Canada,"DOXA Documentary Film Festival (2018)",,,2018-01-08,10815.00,10815.00,Contribution,"Promotion Program",
2017-2018,P4,"Maison 4:3 Inc.",Montreal,Quebec,Canada,"Isla Blanca",French,Drama,2018-03-05,25077.00,25077.00,Advance,"Marketing Program",
2017-2018,P4,"Charles Taylor Theatre & Media Arts Association",Dartmouth,"Nova Scotia",Canada,"Emerging Lens Cultural Film Festival",,,2018-01-10,5000.00,5000.00,Contribution,"Promotion Program",
2017-2018,P4,"Level Film Inc.",Toronto,Ontario,Canada,"The Death (and Life) of Carl Naardlinger",English,Comedy,2018-03-13,25161.00,25161.00,Advance,"Marketing Program",
2017-2018,P4,"Global Visions Festival Society",Edmonton,Alberta,Canada,NORTHWESTFEST,,,2018-01-12,5000.00,5000.00,Contribution,"Promotion Program",
2017-2018,P4,"Les Productions Dionysos inc. / Productions Dionysos inc.",Quebec,Quebec,Canada,"L'Enfant du Nord",French,Action/Adventure,2018-02-20,15000.00,15000.00,Advance,"Development Program",
2017-2018,P4,"Rezolution Pictures International Inc.",Outremont,Quebec,Canada,"White Privilege",English,Documentary,2018-02-13,15000.00,15000.00,Advance,"Development Program",
2017-2018,P4,"ZMA Productions Inc.",Montreal,Quebec,Canada,"Code S",French,Drama,2018-02-07,15000.00,15000.00,Advance,"Development Program",
2017-2018,P4,"8448809 Canada inc.",Montreal,Quebec,Canada,"Crime Blanc",French,Mystery/Crime/Police,2018-02-16,15000.00,15000.00,Advance,"Development Program",
2017-2018,P4,"Banger Films Inc.",Toronto,Ontario,Canada,"Untitled Emily Carr Project",English,"Historical Drama",2018-01-31,15000.00,15000.00,Advance,"Development Program",
2017-2018,P4,"Montefiore Films Inc.",Sudbury,Ontario,Canada,"The Devil You Know",English,Thriller,2018-03-05,15000.00,15000.00,Advance,"Development Program",
2017-2018,P4,"All Soules Films Inc.",Toronto,Ontario,Canada,"IF LOOKS COULD KILL",English,Drama,2018-02-14,15000.00,15000.00,Advance,"Development Program",
2017-2018,P4,"Bellefeuille Production Lt�e",Moncton,"New Brunswick",Canada,Acadie-France,French,Documentary,2018-02-12,15000.00,15000.00,Advance,"Development Program",
2017-2018,P4,"Collingwood Management Inc.",Burnaby,"British Columbia",Canada,"Pain Management Inc.",English,Documentary,2018-01-26,15000.00,15000.00,Advance,"Development Program",
2017-2018,P4,"Winnipeg Film Group Inc.",Winnipeg,Manitoba,Canada,"Gimme Some Truth Documentary Festival",,,2018-03-06,3500.00,3500.00,Contribution,"Promotion Program",
2017-2018,P4,"Slow Motion Food Film Fest Society",Wolfville,"Nova Scotia",Canada,"Devour! The Food Film Fest",,,2018-01-26,7500.00,7500.00,Contribution,"Promotion Program",
2017-2018,P4,"Jill and Jackfish Productions Inc.",Yellowknife,"North West Territories",Canada,Delphine,English,"Science fiction/Fantasy/Tale",2018-01-29,15000.00,15000.00,Advance,"Development Program",
2017-2018,P4,"1936331 ONTARIO INC.",Toronto,Ontario,Canada,FINALE,English,Drama,2018-01-29,15000.00,15000.00,Advance,"Development Program",
2017-2018,P4,"Story Money Impact Foundation",Vancouver,"British Columbia",Canada,"Good Pitch",,,2018-01-31,25000.00,25000.00,Contribution,"Promotion Program",
2017-2018,P4,"Productions Ajoup� Lt�e (Les)",Longueuil,Quebec,Canada,"SUPERS PR�DATEURS",French,Mystery/Crime/Police,2018-02-07,15000.00,15000.00,Advance,"Development Program",
2017-2018,P4,"A Film Monkey Production Inc.",Concord,Ontario,Canada,"Kingston Rising",English,"Historical Drama",2018-01-30,15000.00,15000.00,Advance,"Development Program",
2017-2018,P4,"Festival International de Musique POP Montr�al",Montreal,Quebec,Canada,"POP Montreal",,,2018-02-09,15000.00,15000.00,Contribution,"Promotion Program",
2017-2018,P4,"Broken Head Pictures Inc.",Toronto,Ontario,Canada,"The Paved Road",English,Drama,2018-02-14,15000.00,15000.00,Advance,"Development Program",
2017-2018,P4,"The Film And Video Arts Society of Alberta",Edmonton,Alberta,Canada,"FAVA FEST 2018",,,2018-02-14,2500.00,2500.00,Contribution,"Promotion Program",
2017-2018,P4,"D Films Corporation",Toronto,Ontario,Canada,"ROOM FOR RENT",English,Comedy,2018-02-05,81000.00,81000.00,Advance,"Marketing Program",
2017-2018,P4,"Northern Visions Independent Video & Film Association",Toronto,Ontario,Canada,"Images Festival",,,2018-03-19,22784.00,22784.00,Contribution,"Promotion Program",
2017-2018,P4,"8727775 Canada Inc. / Sibelle Productions!","Pouch Cove",Newfoundland/Labrador,Canada,"Sous le Joug",French,Drama,2018-02-21,15000.00,15000.00,Advance,"Development Program",
2017-2018,P4,"Independent Web Series Creators of Canada",Toronto,Ontario,Canada,"T.O. WebFest",,,2018-01-09,5000.00,5000.00,Contribution,"Promotion Program",
2017-2018,P4,"The Inside Out LGBT Film Festival Inc.",Toronto,Ontario,Canada,"Toronto LGBT Film Festival",,,2018-01-10,5000.00,5000.00,Contribution,"Promotion Program",
2017-2018,P4,"Elevation Pictures Corp.",Toronto,Ontario,Canada,"Man Who Invented Christmas, The",English,Drama,2018-02-01,599838.00,599838.00,Advance,"Marketing Program",
2017-2018,P4,"D Films Corporation",Toronto,Ontario,Canada,CLARA,English,"Science fiction/Fantasy/Tale",2018-02-12,165656.00,165656.00,Advance,"Marketing Program",
2017-2018,P4,"ON SCREEN MANITOBA INCORPORATED",Winnipeg,Manitoba,Canada,"All Access",,,2018-02-27,17000.00,17000.00,Contribution,"Promotion Program",
2017-2018,P4,"Buffalo Gal Pictures Inc.",Winnipeg,Manitoba,Canada,"Forbidden Room (The)",English,Drama,2018-02-28,1500.00,1500.00,Contribution,"International Marketing Program",
2017-2018,P4,"Dreamspeakers Festival Society",Edmonton,Alberta,Canada,"Dreamspeakers Film Festival",,,2018-03-07,5000.00,5000.00,Contribution,"Promotion Program",
2017-2018,P4,"Raven Banner Releasing Inc.",Toronto,Ontario,Canada,"Trench 11",English,Thriller,2018-03-27,101310.00,101310.00,Advance,"Marketing Program",
2017-2018,P4,"Max Films Inc.",Montreal,Quebec,Canada,"HOCHELAGA, TERRE DES �MES",French,"Historical Drama",2018-02-08,1000.00,1000.00,Contribution,"International Marketing Program",
2017-2018,P4,"Bunbury Films Inc.",Montreal,Quebec,Canada,"Coke Biker",English,Thriller,2018-02-02,15000.00,15000.00,Advance,"Development Program",
2017-2018,P4,"Raven Banner Releasing Inc.",Toronto,Ontario,Canada,"The Crescent",English,Thriller,2018-03-27,65241.00,65241.00,Advance,"Marketing Program",
2017-2018,P4,"Goodbye Productions Inc.",Vancouver,"British Columbia",Canada,"Bad Seeds",English,Comedy,2018-03-05,15000.00,15000.00,Advance,"Development Program",
2017-2018,P4,"Victory Man Productions Limited",Toronto,Ontario,Canada,Nunavut,English,Action/Adventure,2018-01-25,15000.00,15000.00,Advance,"Development Program",
2017-2018,P4,"0250636 B.C. Ltd.",Vancouver,"British Columbia",Canada,Louise342,English,Drama,2018-01-26,15000.00,15000.00,Advance,"Development Program",
2017-2018,P4,"Mazeking Pictures Inc.",Halifax,"Nova Scotia",Canada,"Deer Park",English,Thriller,2018-02-12,15000.00,15000.00,Advance,"Development Program",
2017-2018,P4,"Corporation de d�veloppement et de production ACPAV Inc.",Montreal,Quebec,Canada,Antigone,French,Drama,2018-03-23,1000000.00,1000000.00,Advance,"Production Program",
2017-2018,P4,"YN Films Inc.",Toronto,Ontario,Canada,"Tongue Play",English,Comedy,2018-02-22,15000.00,15000.00,Advance,"Development Program",
2017-2018,P4,"Theo Films Inc.",Toronto,Ontario,Canada,DARKLIGHT,English,"Science fiction/Fantasy/Tale",2018-02-20,15000.00,15000.00,Advance,"Development Program",
2017-2018,P4,"Trailer Park Productions Limited",Halifax,"Nova Scotia",Canada,"The Best Christmas Ever",English,Comedy,2018-01-31,35000.00,35000.00,Advance,"Development Program",
2017-2018,P4,"Trailer Park Productions Limited",Halifax,"Nova Scotia",Canada,"Death of the Boogeyman",English,Drama,2018-01-31,35000.00,35000.00,Advance,"Development Program",
2017-2018,P4,"Realm Productions & Advertising Inc.","Saint John","New Brunswick",Canada,Experimental,English,Thriller,2018-01-24,15000.00,15000.00,Advance,"Development Program",
2017-2018,P4,"What We Have Productions Inc.",Toronto,Ontario,Canada,"T'es Belle Maryse",French,Drama,2018-01-26,15000.00,15000.00,Advance,"Development Program",
2017-2018,P4,"Viddywell Films Inc.",Toronto,Ontario,Canada,Helpless,English,Mystery/Crime/Police,2018-03-09,15000.00,15000.00,Advance,"Development Program",
2017-2018,P4,"Loud Baby Productions Inc.",Halifax,"Nova Scotia",Canada,"Return On Love",English,"Historical Drama",2018-03-20,15000.00,15000.00,Advance,"Development Program",
2017-2018,P4,"Vlimeuses productions inc.",Montreal,Quebec,Canada,"Vil et mis�rable",French,Comedy,2018-02-15,15000.00,15000.00,Advance,"Development Program",
2017-2018,P4,"Carousel Pictures Inc.",Toronto,Ontario,Canada,"The Year Without Summer",English,Thriller,2018-02-20,15000.00,15000.00,Advance,"Development Program",
2017-2018,P4,"Less Bland Productions Inc.",Victoria,"British Columbia",Canada,"Tattie Bogles Feature Film",English,Action/Adventure,2018-03-13,15000.00,15000.00,Advance,"Development Program",
2017-2018,P4,"Films Outsiders Inc. (Les)",Montreal,Quebec,Canada,"Les retardataires ne seront pas admis",French,Drama,2018-01-11,20000.00,20000.00,Advance,"Development Program",
2017-2018,P4,"Play Your Gender Inc.",Dartmouth,"Nova Scotia",Canada,"Not My Brother",English,Drama,2018-02-21,15000.00,15000.00,Advance,"Development Program",
2017-2018,P4,"Devonshire Productions Inc.",Toronto,Ontario,Canada,WARG,English,Horror,2018-02-05,15000.00,15000.00,Advance,"Development Program",
2017-2018,P4,"9343679 Canada Inc.",Toronto,Ontario,Canada,"KILL ALL FATHERS",English,Drama,2018-02-14,15000.00,15000.00,Advance,"Development Program",
2017-2018,P4,"Gearshift Films Inc.",Toronto,Ontario,Canada,"Rumi Nation",English,Drama,2018-01-26,15000.00,15000.00,Advance,"Development Program",
2017-2018,P4,"Freddie Films Inc.",Toronto,Ontario,Canada,"FIVE TO ONE",English,"Romantic Comedy",2018-03-05,15000.00,15000.00,Advance,"Development Program",
2017-2018,P4,"CCI Productions Inc.",Toronto,Ontario,Canada,"Better Angels",English,Comedy,2018-01-29,15000.00,15000.00,Advance,"Development Program",
2017-2018,P4,"Motel Pictures Inc.",Toronto,Ontario,Canada,"Heidegger Stairwell",English,Drama,2018-02-15,15000.00,15000.00,Advance,"Development Program",
2017-2018,P4,"Paragraph Pictures Inc.",Toronto,Ontario,Canada,"FILM FESTIVAL",English,Comedy,2018-02-28,15000.00,15000.00,Advance,"Development Program",
2017-2018,P4,"Productions cin�-sc�ne inc.",Quebec,Quebec,Canada,Libertad,French,Drama,2018-02-16,15000.00,15000.00,Advance,"Development Program",
2017-2018,P4,"8585016 Canada Inc.",Toronto,Ontario,Canada,KK2,English,Comedy,2018-02-20,15000.00,15000.00,Advance,"Development Program",
2017-2018,P4,"Entract Films Inc.",Montreal,Quebec,Canada,"LES SC�NES FORTUITES",French,Comedy,2018-02-07,37575.00,37575.00,Advance,"Marketing Program",
2017-2018,P4,"Eye Steel Film Distribution inc.",Montreal,Quebec,Canada,"Anote's Ark",English,Documentary,2018-01-29,19700.00,19700.00,Contribution,"International Marketing Program",
2017-2018,P4,"Microscope Inc.",Montreal,Quebec,Canada,"A Worthy Companion",English,Drama,2018-01-05,1000.00,1000.00,Contribution,"International Marketing Program",
2017-2018,P4,"Milkman Productions Inc.",Toronto,Ontario,Canada,"My Dead Dad's Porno Tapes",English,Documentary,2018-01-17,1700.00,1700.00,Contribution,"International Marketing Program",
2017-2018,P4,"Lithium Studios Productions Inc.",Toronto,Ontario,Canada,"Mobile Homes",English,Drama,2018-03-26,1500.00,1500.00,Contribution,"International Marketing Program",
2017-2018,P4,"Phillip Barker Inc.",Toronto,Ontario,Canada,"Shadow Nettes",English,Drama,2018-01-19,1500.00,1500.00,Contribution,"International Marketing Program",
2017-2018,P4,"Motion 58 Entertainment Inc.",Vancouver,"British Columbia",Canada,"Adventures In Public School",English,Comedy,2018-03-23,39105.00,39105.00,Advance,"Marketing Program",
2017-2018,P4,"2587604 Ontario Inc",Toront,Ontario,Canada,"The Things You Think I'm Thinking",English,Drama,2018-02-05,1700.00,1700.00,Contribution,"International Marketing Program",
2017-2018,P4,"Film Forge Productions Inc.",Toronto,Ontario,Canada,M/M,English,Drama,2018-02-09,5000.00,5000.00,Contribution,"International Marketing Program",
2017-2018,P4,"Funfilm Distribution Inc.",Montreal,Quebec,Canada,"All you can eat Bouddha-Le Meilleur des s�jours",French,Drama,2018-03-08,28000.00,28000.00,Advance,"Marketing Program",
2017-2018,P4,"Films S�ville Inc. (Les)",Montreal,Quebec,Canada,"Trip � Trois (Le)",French,Comedy,2018-03-23,530652.00,530652.00,Advance,"Marketing Program",
2017-2018,P4,"Trinica Entertainment Consultants Inc.",Montreal,Quebec,Canada,"The Tree",English,"Science fiction/Fantasy/Tale",2018-01-19,15000.00,15000.00,Advance,"Development Program",
2017-2018,P4,"9342-5809 Qu�bec Inc.",Montreal,Quebec,Canada,"Les faux tatouages",French,Drama,2018-01-11,5000.00,5000.00,Contribution,"International Marketing Program",
2017-2018,P4,"Fra Diavolo Films Inc.","King city",Ontario,Canada,"For Nonna Anna",English,Drama,2018-01-10,1700.00,1700.00,Contribution,"International Marketing Program",
2017-2018,P4,"Wildling Pictures Inc.",Toronto,Ontario,Canada,"Untitled Molly McGlynn Project",English,Drama,2018-01-17,1500.00,1500.00,Contribution,"International Marketing Program",
2017-2018,P4,"Aquatinter Films Ltd.",Vancouver,"British Columbia",Canada,"Black Kite",English,Drama,2018-01-15,5000.00,5000.00,Contribution,"International Marketing Program",
2017-2018,P4,"Spotlight Television and Film Productions Inc.",Calgary,Alberta,Canada,"Living Proof",English,Documentary,2018-03-26,50000.00,50000.00,Advance,"Marketing Program",
2017-2018,P4,"Cardinal Pictures Inc.",Toronto,Ontario,Canada,"Trouble Women (aka Where the Bodies were Buried)",English,Drama,2018-02-22,1000.00,1000.00,Contribution,"International Marketing Program",
2017-2018,P4,"Streamline Pictures Inc.",Vancouver,"British Columbia",Canada,"Omerta (The)",English,,2018-02-15,1500.00,1500.00,Contribution,"International Marketing Program",
2017-2018,P4,"Mongrel Media Inc.",Toronto,Ontario,Canada,"Meditation Park",English,Drama,2018-03-15,142500.00,142500.00,Advance,"Marketing Program",
2017-2018,P4,"Achromatic Media Inc.",Montreal,Quebec,Canada,Fauve,French,Drama,2018-01-17,1700.00,1700.00,Contribution,"International Marketing Program",
2017-2018,P4,"Heart Shaped Movies Incorporated",Toronto,Ontario,Canada,AmeriKa,English,Drama,2018-01-12,1000.00,1000.00,Contribution,"International Marketing Program",
2017-2018,P4,"SC Productions Inc.",Toronto,Ontario,Canada,"Brooklyn King",English,,2018-01-16,1500.00,1500.00,Contribution,"International Marketing Program",
2017-2018,P4,"Earth Orbit Productions Inc.","Port CoQuitlam","British Columbia",Canada,Relapse,English,,2018-02-02,1500.00,1500.00,Contribution,"International Marketing Program",
2017-2018,P4,"Funfilm Distribution Inc.",Montreal,Quebec,Canada,Venus,English,Comedy,2018-03-20,45000.00,45000.00,Advance,"Marketing Program",
2017-2018,P4,"Forward Thinking Film Worldwide Inc.",Oro,Ontario,Canada,"Phoenix Wilder: And The Great Elephant Adventure",English,Action/Adventure,2018-03-22,50000.00,50000.00,Advance,"Marketing Program",
2017-2018,P4,"DM FILMS INC.",Toronto,Ontario,Canada,"Slap Happy",English,Drama,2018-02-12,1500.00,1500.00,Contribution,"International Marketing Program",
2017-2018,P4,"Productions du Rapide-Blanc Inc. (Les)",Montreal,Quebec,Canada,"Les lettres de ma m�re",French,Documentary,2018-03-05,13000.00,13000.00,Advance,"Marketing Program",
2017-2018,P4,"Item 7 Inc.",Montreal,Quebec,Canada,"My Camino",English,Drama,2018-02-05,1500.00,1500.00,Contribution,"International Marketing Program",
2017-2018,P4,"My Precious Pictures Inc.",Vancouver,"British Columbia",Canada,Chained,English,Horror,2018-01-29,1500.00,1500.00,Contribution,"International Marketing Program",
2017-2018,P4,"Sideways Dog Productions Inc.","Richmond Hill",Ontario,Canada,"Who You Know",English,"Romantic Comedy",2018-01-19,1500.00,1500.00,Contribution,"International Marketing Program",
2017-2018,P4,"Six Island Productions Inc.",Toronto,Ontario,Canada,"Jerusalem The Quarters",English,Drama,2018-03-02,1500.00,1500.00,Contribution,"International Marketing Program",
2017-2018,P4,"Films S�ville Inc. (Les)",Montreal,Quebec,Canada,"HOCHELAGA, TERRE DES �MES",French,"Historical Drama",2018-03-23,248613.00,248613.00,Advance,"Marketing Program",
2017-2018,P4,"9342-5809 Qu�bec Inc.",Montreal,Quebec,Canada,"Les faux tatouages",French,Drama,2018-01-19,10000.00,10000.00,Contribution,"International Marketing Program",
2017-2018,P4,"P�riph�ria Productions Inc.",Montreal,Quebec,Canada,Lemonade,English,Drama,2018-01-25,25000.00,25000.00,Contribution,"International Marketing Program",
2017-2018,P4,"Artifact Films 2011 Inc.",Squamish,"British Columbia",Canada,"Chamber (The)",English,Thriller,2018-02-02,1500.00,1500.00,Contribution,"International Marketing Program",
2017-2018,P4,"Foundry Films Inc.",Toronto,Ontario,Canada,Goalie,English,Drama,2018-01-31,52320.00,52320.00,Advance,"Production Program",
2017-2018,P4,"Foundry Films Inc.",Toronto,Ontario,Canada,Goalie,English,Drama,2018-03-19,0.00,52320.00,Advance,"Production Program","Amended Contract Signed 31-Jan-2018"
2017-2018,P4,"Foundry Films Inc.",Toronto,Ontario,Canada,Goalie,English,Drama,2018-03-19,52320.00,0.00,Investment,"Production Program","Amended Contract Signed 31-Jan-2018"
2017-2018,P4,"What Walaa Wants Productions Inc.",Toronto,Ontario,Canada,"What Walaa Wants",English,Documentary,2018-03-05,24000.00,24000.00,Contribution,"International Marketing Program",
2017-2018,P4,"Blue Goat Films Inc.",Calgary,Alberta,Canada,"Little Wisdom (A)",English,Drama,2018-02-27,1500.00,1500.00,Contribution,"International Marketing Program",
2017-2018,P4,"Voyelles Films inc.",Montreal,Quebec,Canada,"All you can eat Bouddha",French,Drama,2018-01-24,3500.00,3500.00,Contribution,"International Marketing Program",
2017-2018,P4,"Red Cedar Films Inc.",Vancouver,"British Columbia",Canada,Home,English,Drama,2018-02-02,1500.00,1500.00,Contribution,"International Marketing Program",
2017-2018,P4,"Association qu�b�coise de la production m�diatique",Montreal,Quebec,Canada,"Congr�s AQPM",,,2018-02-01,7000.00,7000.00,Contribution,"Promotion Program",
2017-2018,P4,"julijette inc.",Winnipeg,Manitoba,Canada,Accidence,English,Drama,2018-02-05,2500.00,2500.00,Contribution,"International Marketing Program",
2017-2018,P4,"Storyline Entertainment Inc.",Toronto,Ontario,Canada,"Dolphin Man",English,Documentary,2018-02-08,1500.00,1500.00,Contribution,"International Marketing Program",
2017-2018,P4,"Prends Ca Court! 2010 Inc.",St-Lambert,Quebec,Canada,"Gala court m�trage Prends �a court!",,,2018-03-09,7000.00,7000.00,Contribution,"Promotion Program",
2017-2018,P4,"Malefic Films Inc.",Halifax,"Nova Scotia",Canada,"Child Remains (The)",English,Horror,2018-03-26,50000.00,50000.00,Advance,"Marketing Program",
2017-2018,P4,"1114470 B.C. LTD.","Port Mcneill","British Columbia",Canada,"What Keeps You Alive",English,Thriller,2018-03-28,3700.00,3700.00,Contribution,"International Marketing Program",
2017-2018,P4,"Mia Film Inc.",Winnipeg,Manitoba,Canada,"Moon Babies",English,,2018-02-16,1500.00,1500.00,Contribution,"International Marketing Program",
2017-2018,P4,"Milkman Productions Inc.",Toronto,Ontario,Canada,"My Dead Dad's Porno Tapes",English,Documentary,2018-03-22,1500.00,1500.00,Contribution,"International Marketing Program",
2017-2018,P4,"Maison 4:3 Inc.",Montreal,Quebec,Canada,"Terre vue du coeur (La)",French,Documentary,2018-03-21,65000.00,65000.00,Advance,"Marketing Program",
2017-2018,P4,"Motel Pictures Inc.",Toronto,Ontario,Canada,"We forgot to break up",English,Drama,2018-02-20,2500.00,2500.00,Contribution,"International Marketing Program",
2017-2018,P4,"Newton's Cradle Ltd.",Toronto,Ontario,Canada,Milk,English,Drama,2018-02-19,1500.00,1500.00,Contribution,"International Marketing Program",
2017-2018,P4,"Hamilton-Mehta Productions Inc.",Toronto,Ontario,Canada,"Earth- film refurbishment and itunes placement",,,2018-03-02,16000.00,16000.00,Contribution,"Promotion Program",
2017-2018,P4,"Elevation Pictures Corp.",Toronto,Ontario,Canada,"Breadwinner (The)",English,Drama,2018-03-28,185917.00,185917.00,Advance,"Marketing Program",
2017-2018,P4,"Axia Films inc.",Montreal,Quebec,Canada,"CHIEN DE GARDE",French,Drama,2018-03-16,100000.00,100000.00,Advance,"Marketing Program",
2017-2018,P4,"Motion 58 Entertainment Inc.",Vancouver,"British Columbia",Canada,"Adventures In Public School",English,Comedy,2018-02-28,1500.00,1500.00,Contribution,"International Marketing Program",
2017-2018,P4,"Motion 58 Entertainment Inc.",Vancouver,"British Columbia",Canada,"Adventures In Public School",English,Comedy,2018-02-28,1500.00,1500.00,Contribution,"International Marketing Program",
2017-2018,P4,"N5 Pictures Inc.",Mississauga,Ontario,Canada,GEAR,English,Mystery/Crime/Police,2018-03-13,30000.00,30000.00,Advance,"Marketing Program",
2017-2018,P4,"GROUPE PVP INC.",Matane,Quebec,Canada,"Coproduction market - no specific project",English,,2018-02-12,1000.00,1000.00,Contribution,"International Marketing Program",
2017-2018,P4,"Oddfellows Entertainment Inc.",Vancouver,"British Columbia",Canada,"First Light",English,"Science fiction/Fantasy/Tale",2018-02-23,2500.00,2500.00,Contribution,"International Marketing Program",
2017-2018,P4,"Level Film Inc.",Toronto,Ontario,Canada,"Another Kind of Wedding",English,Comedy,2018-03-27,30000.00,30000.00,Advance,"Marketing Program",
2017-2018,P4,"eMerge Enterprises Ltd",Montreal,Quebec,Canada,"Coproduction market - no specific project",English,,2018-03-14,1500.00,1500.00,Contribution,"International Marketing Program",
2017-2018,P4,"Blac Op Films Incorporated",Dartmouth,"Nova Scotia",Canada,"Black Cop",English,Drama,2018-03-16,1500.00,1500.00,Contribution,"International Marketing Program",
2017-2018,P4,"Independent Edge Films Inc.",Vancouver,"British Columbia",Canada,"The New Romantic (formerly The Undergraduate)",English,Comedy,2018-03-13,5000.00,5000.00,Contribution,"International Marketing Program",
2017-2018,P4,"Scarborough Pictures Inc.",Toronto,Ontario,Canada,SHOOK,English,Drama,2018-03-21,15000.00,15000.00,Advance,"Development Program",
2017-2018,P4,"Les Films de L'Hydre Inc.",Montreal,Quebec,Canada,"Chiennes de fa�ence",French,Drama,2018-02-23,15000.00,15000.00,Advance,"Development Program",
2017-2018,P4,"Perfect Pictures Inc.",Calgary,Alberta,Canada,"Rogues and Renegades",English,Action/Adventure,2018-03-26,15000.00,15000.00,Advance,"Development Program",
2017-2018,P4,"Curiosity Pictures Inc.",Burnaby,"British Columbia",Canada,Ballyhoo,English,Drama,2018-03-20,15000.00,15000.00,Advance,"Development Program",
2017-2018,P4,"Saaren Films Inc.",Toronto,Ontario,Canada,"In the Name of Honour",English,Documentary,2018-03-26,15000.00,15000.00,Advance,"Development Program",
2017-2018,P4,"Films S�ville Inc. (Les)",Montreal,Quebec,Canada,"Nelly et Simon : Mission Y�ti",French,Drama,2018-03-23,206497.00,206497.00,Advance,"Marketing Program",
2017-2018,P4,"Films S�ville Inc. (Les)",Montreal,Quebec,Canada,"Pour vivre ici",French,Drama,2018-03-23,127950.00,127950.00,Advance,"Marketing Program",
2017-2018,P4,"Intuitive Pictures Inc.",Montreal,Quebec,Canada,"Impact Films",,,2018-02-27,10500.00,10500.00,Contribution,"Promotion Program",
2017-2018,P4,"A71 Entertainment Inc.",Toronto,Ontario,Canada,"My Enemy, My Brother",English,Documentary,2018-03-20,24000.00,24000.00,Advance,"Marketing Program",
2017-2018,P4,"Back Road Productions Inc.",Edmonton,Alberta,Canada,"Peak Oil",English,Drama,2018-03-22,1500.00,1500.00,Contribution,"International Marketing Program",
2017-2018,P4,"Films Christal, s.e.c.(Les)",Montreal,Quebec,Canada,"Charlotte a du fun",French,Comedy,2018-03-23,57000.00,57000.00,Advance,"Marketing Program",
2017-2018,P4,"Films S�ville Inc. (Les)",Montreal,Quebec,Canada,"The Death and Life of John F. Donovan",English,Comedy,2018-03-23,1236903.00,1236903.00,Advance,"Marketing Program",
2017-2018,P4,"Lockpicker Productions Inc.",Toronto,Ontario,Canada,"The Lockpicker",English,Drama,2018-03-27,24750.00,24750.00,Advance,"Marketing Program",
2017-2018,P4,"Primitive Entertainment Inc.",Toronto,Ontario,Canada,"There is a House Here",English,Documentary,2018-03-23,1500.00,1500.00,Contribution,"International Marketing Program",
2017-2018,P4,"CCI Productions Inc.",Toronto,Ontario,Canada,"Someone Else's Wedding",English,"Romantic Comedy",2018-03-26,4700.00,4700.00,Contribution,"International Marketing Program",
2017-2018,P4,"P�riph�ria Productions Inc.",Montreal,Quebec,Canada,Lemonade,English,Drama,2018-03-08,5000.00,5000.00,Contribution,"International Marketing Program",
2017-2018,P4,"Bankdrama Film Ltd.",Toronto,Ontario,Canada,Stockholm,English,Mystery/Crime/Police,2018-03-16,4200.00,4200.00,Contribution,"International Marketing Program",
2017-2018,P4,"Films S�ville Inc. (Les)",Montreal,Quebec,Canada,"HOCHELAGA, TERRE DES �MES",French,"Historical Drama",2018-03-23,1000.00,1000.00,Contribution,"International Marketing Program",
2017-2018,P4,"Indian Horse Productions (BC) Inc.",Vancouver,"British Columbia",Canada,"Indian Horse",English,Drama,2018-03-20,1500.00,1500.00,Contribution,"International Marketing Program",
2017-2018,P4,"9348-8310 Qu�bec inc.",Montreal,Quebec,Canada,"Charlotte a du fun",French,Comedy,2018-03-22,5000.00,5000.00,Contribution,"International Marketing Program",
2017-2018,P4,Kino00,Montreal,Quebec,Canada,"Macro Kino et Gala Kino",,,2018-03-22,20000.00,20000.00,Contribution,"Promotion Program",
